[Event "Late-Titled-Tuesday-Blitz-May-28-2024"]
[Site "Chess.com"]
[Date "2024.05.28"]
[Round "1"]
[White "lucasran"]
[Black "osielchesslover2011"]
[Result "1-0"]
[WhiteElo "2580"]
[BlackElo "2252"]
[TimeControl "180+1"]
[EndTime "14:09:00 PDT"]
[Termination "lucasran won by resignation"]

1. Nf3 {[%clk 0:02:57.9]} 1... Nf6 {[%clk 0:02:59.4]} 2. c4 {[%clk 0:02:58.2]}
2... g6 {[%clk 0:03:00.1]} 3. g3 {[%clk 0:02:54.3]} 3... Bg7 {[%clk 0:02:56.1]}
4. Bg2 {[%clk 0:02:55]} 4... O-O {[%clk 0:02:56.1]} 5. O-O {[%clk 0:02:55.9]}
5... d6 {[%clk 0:02:56.4]} 6. d4 {[%clk 0:02:55.7]} 6... Nbd7 {[%clk 0:02:56.9]}
7. Nc3 {[%clk 0:02:55.6]} 7... c5 {[%clk 0:02:57.5]} 8. d5 {[%clk 0:02:49.6]}
8... a6 {[%clk 0:02:56.7]} 9. a4 {[%clk 0:02:49.6]} 9... Qc7 {[%clk 0:02:49.6]}
10. e4 {[%clk 0:02:47.6]} 10... Ne5 {[%clk 0:02:49.3]} 11. Nxe5 {[%clk
0:02:45.4]} 11... dxe5 {[%clk 0:02:49.3]} 12. h3 {[%clk 0:02:45]} 12... Ne8
{[%clk 0:02:47.5]} 13. Qc2 {[%clk 0:02:40.4]} 13... Nd6 {[%clk 0:02:46.2]} 14.
b3 {[%clk 0:02:40.6]} 14... f5 {[%clk 0:02:45.7]} 15. exf5 {[%clk 0:02:31.8]}
15... Nxf5 {[%clk 0:02:37.3]} 16. Ne4 {[%clk 0:02:10.1]} 16... Nd4 {[%clk
0:02:34.4]} 17. Qd1 {[%clk 0:02:09.8]} 17... Bf5 {[%clk 0:02:31.7]} 18. Kh2
{[%clk 0:02:05.8]} 18... Rad8 {[%clk 0:02:18.8]} 19. Ba3 {[%clk 0:01:59.5]}
19... Bxe4 {[%clk 0:02:02.8]} 20. Bxe4 {[%clk 0:02:00.4]} 20... b6 {[%clk
0:02:01.3]} 21. Qd3 {[%clk 0:01:48.3]} 21... a5 {[%clk 0:01:58.9]} 22. Rae1
{[%clk 0:01:47.3]} 22... Qd6 {[%clk 0:01:58.5]} 23. Bc1 {[%clk 0:01:43.6]} 23...
Rf7 {[%clk 0:01:56.5]} 24. Kg2 {[%clk 0:01:42.3]} 24... Rdf8 {[%clk 0:01:55.1]}
25. f3 {[%clk 0:01:23.7]} 25... Kh8 {[%clk 0:01:43.6]} 26. Rf2 {[%clk
0:01:21.9]} 26... Qf6 {[%clk 0:01:24.2]} 27. h4 {[%clk 0:01:21.8]} 27... Nf5
{[%clk 0:01:04.3]} 28. Bg5 {[%clk 0:01:18.3]} 28... Qd6 {[%clk 0:01:03.9]} 29.
Rh1 {[%clk 0:01:04.5]} 29... h6 {[%clk 0:00:47.2]} 30. Bc1 {[%clk 0:00:59.9]}
30... Qf6 {[%clk 0:00:47.6]} 31. Rh3 {[%clk 0:00:41.8]} 31... Rd8 {[%clk
0:00:38.3]} 32. Bd2 {[%clk 0:00:41.8]} 32... e6 {[%clk 0:00:34.9]} 33. Rf1
{[%clk 0:00:40.7]} 33... exd5 {[%clk 0:00:34.4]} 34. Bxd5 {[%clk 0:00:41.6]}
34... Ne7 {[%clk 0:00:29]} 35. Bg5 {[%clk 0:00:32.6]} 35... Qd6 {[%clk
0:00:13.2]} 36. Bxe7 {[%clk 0:00:20.4]} 36... Rxe7 {[%clk 0:00:12.8]} 37. h5
{[%clk 0:00:20.8]} 37... g5 {[%clk 0:00:12.4]} 38. Qe4 {[%clk 0:00:20.8]} 38...
Qf6 {[%clk 0:00:12.1]} 39. Re1 {[%clk 0:00:20.3]} 39... Rf8 {[%clk 0:00:11.9]}
40. Qg4 {[%clk 0:00:20.1]} 40... Qd6 {[%clk 0:00:09.7]} 41. Re4 {[%clk
0:00:20.1]} 41... Ree8 {[%clk 0:00:09]} 42. Rh1 {[%clk 0:00:20.5]} 42... Rf6
{[%clk 0:00:08.8]} 43. Rc1 {[%clk 0:00:20.8]} 43... Ref8 {[%clk 0:00:08.7]} 44.
Re2 {[%clk 0:00:17.9]} 44... Qc7 {[%clk 0:00:07.8]} 45. Rd1 {[%clk 0:00:18.2]}
45... Qb8 {[%clk 0:00:07.4]} 46. Be4 {[%clk 0:00:18.6]} 46... Rd6 {[%clk
0:00:04.7]} 47. Red2 {[%clk 0:00:19.1]} 47... Rxd2+ {[%clk 0:00:04.8]} 48. Rxd2
{[%clk 0:00:20]} 48... Qc7 {[%clk 0:00:03.8]} 49. Rd7 {[%clk 0:00:19.8]} 49...
Qc8 {[%clk 0:00:04]} 50. Qe6 {[%clk 0:00:16.1]} 50... Qe8 {[%clk 0:00:02.8]} 51.
Qg4 {[%clk 0:00:04]} 51... Qb8 {[%clk 0:00:02.1]} 52. Rd5 {[%clk 0:00:03.2]}
52... Qc8 {[%clk 0:00:01.7]} 53. Rd7 {[%clk 0:00:03.5]} 53... Qb8 {[%clk
0:00:01.4]} 54. Qe6 {[%clk 0:00:03.7]} 54... Qc8 {[%clk 0:00:01.8]} 55. Qe7
{[%clk 0:00:02]} 55... Rg8 {[%clk 0:00:01]} 56. Bd5 {[%clk 0:00:02.5]} 56... Qf8
{[%clk 0:00:01.3]} 57. Bxg8 {[%clk 0:00:03]} 57... Qxe7 {[%clk 0:00:02]} 58.
Rxe7 {[%clk 0:00:03]} 58... Kxg8 {[%clk 0:00:02.7]} 59. Re6 {[%clk 0:00:03.9]}
59... Bf8 {[%clk 0:00:03]} 60. Rxb6 {[%clk 0:00:04.3]} 60... Kf7 {[%clk
0:00:03.6]} 61. g4 {[%clk 0:00:04.7]} 61... Be7 {[%clk 0:00:03.3]} 62. Rb5
{[%clk 0:00:05]} 62... Bd8 {[%clk 0:00:03.4]} 63. Rxc5 {[%clk 0:00:05.3]} 63...
Ke6 {[%clk 0:00:03.7]} 64. Rd5 {[%clk 0:00:05.9]} 64... Be7 {[%clk 0:00:03.9]}
65. Rxa5 {[%clk 0:00:04.3]} 65... Bb4 {[%clk 0:00:04.5]} 66. Rd5 {[%clk
0:00:04.7]} 66... Bc3 {[%clk 0:00:04.4]} 67. a5 {[%clk 0:00:05.2]} 67... Bb4
{[%clk 0:00:04.1]} 68. a6 {[%clk 0:00:05.7]} 68... Bd6 {[%clk 0:00:05]} 69. a7
{[%clk 0:00:06.1]} 1-0

[Event "Late-Titled-Tuesday-Blitz-May-28-2024"]
[Site "Chess.com"]
[Date "2024.05.28"]
[Round "1"]
[White "Pitomina"]
[Black "kirillshevchenko"]
[Result "0-1"]
[WhiteElo "2490"]
[BlackElo "2897"]
[TimeControl "180+1"]
[EndTime "14:09:10 PDT"]
[Termination "kirillshevchenko won by resignation"]

1. e4 {[%clk 0:03:00.9]} 1... b6 {[%clk 0:03:00]} 2. d4 {[%clk 0:03:00]} 2...
Bb7 {[%clk 0:03:00.4]} 3. Bd3 {[%clk 0:03:00.2]} 3... d6 {[%clk 0:03:01]} 4. Nf3
{[%clk 0:02:59.3]} 4... Nd7 {[%clk 0:02:59]} 5. O-O {[%clk 0:02:58.8]} 5... e5
{[%clk 0:02:56.3]} 6. c3 {[%clk 0:02:53]} 6... g6 {[%clk 0:02:55.9]} 7. Re1
{[%clk 0:02:51.3]} 7... Bg7 {[%clk 0:02:53.3]} 8. a4 {[%clk 0:02:49.8]} 8... a6
{[%clk 0:02:36.6]} 9. Bg5 {[%clk 0:02:47.5]} 9... Ne7 {[%clk 0:02:33.7]} 10.
Nbd2 {[%clk 0:02:39.1]} 10... O-O {[%clk 0:02:33.2]} 11. dxe5 {[%clk 0:02:36.2]}
11... dxe5 {[%clk 0:02:30.9]} 12. Nc4 {[%clk 0:02:34.2]} 12... f6 {[%clk
0:02:13.9]} 13. Be3 {[%clk 0:02:29.9]} 13... Nc6 {[%clk 0:02:12.7]} 14. Qb3
{[%clk 0:02:20.4]} 14... Kh8 {[%clk 0:02:11.7]} 15. Rad1 {[%clk 0:02:21.1]}
15... Qe7 {[%clk 0:02:11.2]} 16. Rd2 {[%clk 0:01:59.5]} 16... Nc5 {[%clk
0:02:09.7]} 17. Bxc5 {[%clk 0:01:58.9]} 17... Qxc5 {[%clk 0:02:10.6]} 18. Red1
{[%clk 0:01:57]} 18... Bh6 {[%clk 0:02:06.4]} 19. Re2 {[%clk 0:01:54.5]} 19...
Rad8 {[%clk 0:02:05.4]} 20. Ne3 {[%clk 0:01:52.6]} 20... Ne7 {[%clk 0:01:56.8]}
21. Qc2 {[%clk 0:01:46]} 21... a5 {[%clk 0:01:55.9]} 22. Ng4 {[%clk 0:01:38.9]}
22... Bg7 {[%clk 0:01:54.9]} 23. Rde1 {[%clk 0:01:33.6]} 23... Rd6 {[%clk
0:01:51.9]} 24. Rd2 {[%clk 0:01:28.7]} 24... Rfd8 {[%clk 0:01:50.4]} 25. Red1
{[%clk 0:01:29.3]} 25... h5 {[%clk 0:01:49.4]} 26. Ne3 {[%clk 0:01:27.1]} 26...
Bh6 {[%clk 0:01:49.4]} 27. Re1 {[%clk 0:01:20.2]} 27... Kh7 {[%clk 0:01:41]} 28.
h3 {[%clk 0:01:13.6]} 28... R6d7 {[%clk 0:01:29]} 29. Bb5 {[%clk 0:01:09.7]}
29... Rxd2 {[%clk 0:01:27.5]} 30. Nxd2 {[%clk 0:01:09.7]} 30... Nc8 {[%clk
0:01:20.4]} 31. Ndf1 {[%clk 0:00:58.2]} 31... Nd6 {[%clk 0:01:10.7]} 32. Bd3
{[%clk 0:00:57.4]} 32... c6 {[%clk 0:00:56.7]} 33. Rd1 {[%clk 0:00:56.6]} 33...
Nc8 {[%clk 0:00:54.6]} 34. Be2 {[%clk 0:00:55.4]} 34... Rxd1 {[%clk 0:00:52.5]}
35. Qxd1 {[%clk 0:00:56.3]} 35... Qd6 {[%clk 0:00:50.3]} 36. Nc4 {[%clk
0:00:55.6]} 36... Qxd1 {[%clk 0:00:49.5]} 37. Bxd1 {[%clk 0:00:56.5]} 37... Bc1
{[%clk 0:00:45.9]} 38. g4 {[%clk 0:00:51.8]} 38... hxg4 {[%clk 0:00:41.5]} 39.
Bxg4 {[%clk 0:00:51.1]} 39... Ba6 {[%clk 0:00:42.1]} 40. Nfe3 {[%clk 0:00:42]}
40... Bxe3 {[%clk 0:00:41.6]} 41. Nxe3 {[%clk 0:00:28.8]} 41... Nd6 {[%clk
0:00:41.6]} 42. Bd7 {[%clk 0:00:25.9]} 42... Bb7 {[%clk 0:00:34.9]} 43. f3
{[%clk 0:00:25.8]} 43... Kg7 {[%clk 0:00:35.3]} 44. Kf2 {[%clk 0:00:25.9]} 44...
Kf7 {[%clk 0:00:35.6]} 45. h4 {[%clk 0:00:25.1]} 45... Ke7 {[%clk 0:00:35.6]}
46. Bh3 {[%clk 0:00:25.3]} 46... Ba6 {[%clk 0:00:35.7]} 47. Bf1 {[%clk
0:00:25.1]} 47... Bc8 {[%clk 0:00:35.5]} 48. Bd3 {[%clk 0:00:24.5]} 48... Be6
{[%clk 0:00:35.3]} 49. Bc2 {[%clk 0:00:23.4]} 49... b5 {[%clk 0:00:34.5]} 50.
axb5 {[%clk 0:00:22.6]} 50... cxb5 {[%clk 0:00:35.4]} 51. Kg3 {[%clk 0:00:22.8]}
51... b4 {[%clk 0:00:32]} 52. cxb4 {[%clk 0:00:22.2]} 52... axb4 {[%clk
0:00:32.9]} 53. Bd3 {[%clk 0:00:21.4]} 53... Nb7 {[%clk 0:00:27.6]} 54. f4
{[%clk 0:00:20.5]} 54... Nc5 {[%clk 0:00:27.1]} 55. Bc2 {[%clk 0:00:20.5]} 55...
exf4+ {[%clk 0:00:23.5]} 56. Kxf4 {[%clk 0:00:20.3]} 56... b3 {[%clk 0:00:24.4]}
57. Bb1 {[%clk 0:00:18.9]} 57... Na4 {[%clk 0:00:24.8]} 58. Nd1 {[%clk
0:00:19.4]} 58... Kd6 {[%clk 0:00:22.8]} 59. Bd3 {[%clk 0:00:16.7]} 59... Kc5
{[%clk 0:00:19.8]} 60. e5 {[%clk 0:00:15.6]} 60... Kd4 {[%clk 0:00:20.3]} 61.
Bxg6 {[%clk 0:00:11.7]} 61... fxe5+ {[%clk 0:00:20.5]} 62. Kf3 {[%clk 0:00:12]}
62... Bd5+ {[%clk 0:00:14.2]} 63. Ke2 {[%clk 0:00:11.7]} 63... Bc4+ {[%clk
0:00:14.1]} 64. Kd2 {[%clk 0:00:11.1]} 64... e4 {[%clk 0:00:09.2]} 65. h5 {[%clk
0:00:11.3]} 65... Bd3 {[%clk 0:00:08.8]} 66. Ke1 {[%clk 0:00:07.1]} 66... Ke5
{[%clk 0:00:05.8]} 67. h6 {[%clk 0:00:07.3]} 67... Kf6 {[%clk 0:00:06.2]} 68. h7
{[%clk 0:00:07.8]} 68... Kg7 {[%clk 0:00:06.9]} 69. Kd2 {[%clk 0:00:07]} 69...
Nc5 {[%clk 0:00:04.1]} 70. Nc3 {[%clk 0:00:06.6]} 70... e3+ {[%clk 0:00:03.9]}
71. Kxe3 {[%clk 0:00:06.3]} 71... Bxg6 {[%clk 0:00:04.6]} 72. Kd4 {[%clk
0:00:06.3]} 72... Nd3 {[%clk 0:00:04.6]} 73. Nd5 {[%clk 0:00:04.4]} 73... Nc1
{[%clk 0:00:03.1]} 74. Kc3 {[%clk 0:00:04.7]} 74... Bxh7 {[%clk 0:00:02.7]} 75.
Ne3 {[%clk 0:00:04.4]} 75... Bg8 {[%clk 0:00:03]} 76. Nf5+ {[%clk 0:00:03.6]}
76... Kf6 {[%clk 0:00:03.2]} 77. Nd4 {[%clk 0:00:04.4]} 77... Ke5 {[%clk
0:00:02.7]} 78. Kd2 {[%clk 0:00:04.6]} 78... Na2 {[%clk 0:00:01.8]} 79. Nb5
{[%clk 0:00:03.3]} 79... Kd5 {[%clk 0:00:02]} 80. Nc7+ {[%clk 0:00:02.6]} 80...
Kc5 {[%clk 0:00:02.2]} 81. Na6+ {[%clk 0:00:02.8]} 81... Kc6 {[%clk 0:00:02.1]}
82. Nb8+ {[%clk 0:00:03.1]} 82... Kc7 {[%clk 0:00:02.3]} 83. Nd7 {[%clk
0:00:04]} 83... Kxd7 {[%clk 0:00:02.7]} 84. Kd3 {[%clk 0:00:03.4]} 84... Kc6
{[%clk 0:00:03.6]} 85. Kd4 {[%clk 0:00:03.6]} 85... Kb5 {[%clk 0:00:04.5]} 0-1

[Event "Late-Titled-Tuesday-Blitz-May-28-2024"]
[Site "Chess.com"]
[Date "2024.05.28"]
[Round "1"]
[White "SoCalJuniorChess"]
[Black "ATM622"]
[Result "0-1"]
[WhiteElo "2238"]
[BlackElo "2576"]
[TimeControl "180+1"]
[EndTime "14:09:44 PDT"]
[Termination "ATM622 won by resignation"]

1. d4 {[%clk 0:03:00.9]} 1... d5 {[%clk 0:02:59.1]} 2. Nc3 {[%clk 0:02:59.3]}
2... Nf6 {[%clk 0:02:58.8]} 3. Bf4 {[%clk 0:02:57.6]} 3... e6 {[%clk 0:02:58.5]}
4. Nb5 {[%clk 0:02:56]} 4... Na6 {[%clk 0:02:58.4]} 5. e3 {[%clk 0:02:55.7]}
5... c6 {[%clk 0:02:54]} 6. Nc3 {[%clk 0:02:55.2]} 6... Bb4 {[%clk 0:02:52.4]}
7. Bxa6 {[%clk 0:02:53.4]} 7... bxa6 {[%clk 0:02:52.4]} 8. Ne2 {[%clk
0:02:53.6]} 8... O-O {[%clk 0:02:50.2]} 9. a3 {[%clk 0:02:53.5]} 9... Bd6 {[%clk
0:02:50]} 10. O-O {[%clk 0:02:51.2]} 10... h6 {[%clk 0:02:48.5]} 11. Na4 {[%clk
0:02:48.9]} 11... Re8 {[%clk 0:02:47.6]} 12. Bxd6 {[%clk 0:02:48]} 12... Qxd6
{[%clk 0:02:47.8]} 13. Nc5 {[%clk 0:02:48.9]} 13... Rb8 {[%clk 0:02:44]} 14. Rb1
{[%clk 0:02:47.7]} 14... e5 {[%clk 0:02:43.7]} 15. b4 {[%clk 0:02:45.3]} 15...
exd4 {[%clk 0:02:35.8]} 16. exd4 {[%clk 0:02:44.4]} 16... Bg4 {[%clk 0:02:34.4]}
17. f3 {[%clk 0:02:44]} 17... Bf5 {[%clk 0:02:27.4]} 18. Nc1 {[%clk 0:02:42.1]}
18... Bc8 {[%clk 0:02:24.5]} 19. N1d3 {[%clk 0:02:41.7]} 19... a5 {[%clk
0:02:13.6]} 20. bxa5 {[%clk 0:02:36.1]} 20... Rxb1 {[%clk 0:02:13.1]} 21. Qxb1
{[%clk 0:02:37]} 21... Qc7 {[%clk 0:02:09.5]} 22. Qb4 {[%clk 0:02:31.7]} 22...
Bf5 {[%clk 0:02:07.5]} 23. Kf2 {[%clk 0:02:23.2]} 23... Qxh2 {[%clk 0:02:02.3]}
24. Ne5 {[%clk 0:02:20.4]} 24... Bxc2 {[%clk 0:01:38.5]} 25. Qd2 {[%clk
0:02:15]} 25... Bf5 {[%clk 0:01:33.1]} 26. a6 {[%clk 0:02:02.3]} 26... Nh5
{[%clk 0:01:31]} 27. Re1 {[%clk 0:01:53.7]} 27... Qg3+ {[%clk 0:01:25.9]} 28.
Kg1 {[%clk 0:01:53.3]} 28... Nf4 {[%clk 0:01:23.4]} 29. Kh1 {[%clk 0:01:48.9]}
29... f6 {[%clk 0:01:17.8]} 30. Ned3 {[%clk 0:01:42.4]} 30... Rxe1+ {[%clk
0:01:17.3]} 31. Nxe1 {[%clk 0:01:42.7]} 31... h5 {[%clk 0:00:54.2]} 32. Ncd3
{[%clk 0:01:42]} 32... Nxd3 {[%clk 0:00:49.1]} 33. Nxd3 {[%clk 0:01:42.9]} 33...
h4 {[%clk 0:00:48.9]} 34. Nf4 {[%clk 0:01:35.5]} 34... h3 {[%clk 0:00:46.5]} 35.
Nxh3 {[%clk 0:01:28.1]} 35... Bxh3 {[%clk 0:00:46]} 36. gxh3 {[%clk 0:01:28.4]}
36... Qxh3+ {[%clk 0:00:46.3]} 37. Kg1 {[%clk 0:01:15.5]} 37... Qg3+ {[%clk
0:00:46]} 38. Kf1 {[%clk 0:01:03.9]} 38... Qxf3+ {[%clk 0:00:45.7]} 39. Kg1
{[%clk 0:00:59.3]} 39... Qg3+ {[%clk 0:00:45.1]} 40. Kh1 {[%clk 0:00:58.7]}
40... Qh3+ {[%clk 0:00:43.8]} 41. Kg1 {[%clk 0:00:58.8]} 41... Qxa3 {[%clk
0:00:44.3]} 42. Qe2 {[%clk 0:00:51.1]} 42... Kf7 {[%clk 0:00:28.5]} 43. Qg4
{[%clk 0:00:46.4]} 43... Qe3+ {[%clk 0:00:24.7]} 44. Kf1 {[%clk 0:00:46.4]}
44... Qe7 {[%clk 0:00:23]} 45. Qh5+ {[%clk 0:00:42.8]} 45... Ke6 {[%clk
0:00:20.6]} 46. Qg4+ {[%clk 0:00:39.4]} 46... Kd6 {[%clk 0:00:18]} 47. Qg3+
{[%clk 0:00:36.8]} 47... Ke6 {[%clk 0:00:11.5]} 48. Qg4+ {[%clk 0:00:36.2]}
48... Kf7 {[%clk 0:00:11.4]} 49. Qh5+ {[%clk 0:00:36.6]} 49... Kg8 {[%clk
0:00:11.5]} 50. Qf5 {[%clk 0:00:33.4]} 50... Qe8 {[%clk 0:00:09.7]} 51. Qb1
{[%clk 0:00:29.7]} 51... f5 {[%clk 0:00:06.3]} 52. Qb7 {[%clk 0:00:27.5]} 52...
Qf7 {[%clk 0:00:06.5]} 53. Qb8+ {[%clk 0:00:20]} 53... Kh7 {[%clk 0:00:06.3]}
54. Qh2+ {[%clk 0:00:20.7]} 54... Kg6 {[%clk 0:00:06.3]} 55. Qg3+ {[%clk
0:00:19.7]} 55... Kh7 {[%clk 0:00:06.5]} 56. Qh4+ {[%clk 0:00:19.4]} 56... Kg8
{[%clk 0:00:06.6]} 57. Qd8+ {[%clk 0:00:19.4]} 57... Qf8 {[%clk 0:00:07]} 58.
Qd7 {[%clk 0:00:19.5]} 58... Qb8 {[%clk 0:00:03.6]} 59. Qe6+ {[%clk 0:00:18.6]}
59... Kh8 {[%clk 0:00:04]} 60. Qxf5 {[%clk 0:00:17]} 60... Kg8 {[%clk
0:00:02.3]} 61. Qe6+ {[%clk 0:00:17]} 61... Kh8 {[%clk 0:00:01.8]} 62. Qh3+
{[%clk 0:00:17.7]} 62... Kg8 {[%clk 0:00:02.2]} 63. Qe6+ {[%clk 0:00:18.6]}
63... Kf8 {[%clk 0:00:02.6]} 64. Qxc6 {[%clk 0:00:17.8]} 64... Qf4+ {[%clk
0:00:02.1]} 65. Kg2 {[%clk 0:00:16.3]} 65... Qxd4 {[%clk 0:00:02]} 66. Qd6+
{[%clk 0:00:13.5]} 66... Kf7 {[%clk 0:00:02.2]} 67. Qd7+ {[%clk 0:00:13.9]}
67... Kf6 {[%clk 0:00:02.6]} 68. Qd8+ {[%clk 0:00:13.6]} 68... Kf5 {[%clk
0:00:02.8]} 69. Qf8+ {[%clk 0:00:12.9]} 69... Ke4 {[%clk 0:00:03]} 70. Qe7+
{[%clk 0:00:10.4]} 70... Kd3 {[%clk 0:00:03.2]} 71. Qa3+ {[%clk 0:00:08.9]}
71... Kc2 {[%clk 0:00:02.8]} 72. Qa2+ {[%clk 0:00:09]} 72... Kc3 {[%clk
0:00:02.7]} 73. Qa1+ {[%clk 0:00:09.3]} 73... Kd3 {[%clk 0:00:03]} 74. Qd1+
{[%clk 0:00:09.3]} 74... Kc4 {[%clk 0:00:03.4]} 75. Qc2+ {[%clk 0:00:09.1]}
75... Qc3 {[%clk 0:00:03.8]} 76. Qa4+ {[%clk 0:00:09.6]} 76... Qb4 {[%clk
0:00:03.9]} 77. Qc6+ {[%clk 0:00:10.3]} 77... Kd4 {[%clk 0:00:04.3]} 78. Qc7
{[%clk 0:00:08.7]} 78... Qc5 {[%clk 0:00:03.1]} 79. Qf4+ {[%clk 0:00:08.2]}
79... Kc3 {[%clk 0:00:03.3]} 80. Qg3+ {[%clk 0:00:07.8]} 80... Kb4 {[%clk
0:00:03.3]} 81. Qxg7 {[%clk 0:00:07.5]} 81... d4 {[%clk 0:00:03.4]} 82. Qb7+
{[%clk 0:00:07.4]} 82... Kc3 {[%clk 0:00:03.8]} 83. Qb1 {[%clk 0:00:06.3]} 83...
Kc4 {[%clk 0:00:03.1]} 84. Qc2+ {[%clk 0:00:06.7]} 84... Kd5 {[%clk 0:00:03.1]}
85. Qf5+ {[%clk 0:00:07.3]} 85... Kc6 {[%clk 0:00:03.5]} 86. Qc8+ {[%clk
0:00:07.4]} 86... Kb5 {[%clk 0:00:03.2]} 87. Qb7+ {[%clk 0:00:07.5]} 87... Qb6
{[%clk 0:00:03]} 88. Qd5+ {[%clk 0:00:06.2]} 88... Kxa6 {[%clk 0:00:03.3]} 89.
Qa2+ {[%clk 0:00:05.6]} 89... Kb7 {[%clk 0:00:03.6]} 90. Qf7+ {[%clk 0:00:05.7]}
90... Kb8 {[%clk 0:00:03.5]} 91. Qf8+ {[%clk 0:00:05.7]} 91... Kc7 {[%clk
0:00:03.9]} 92. Qe7+ {[%clk 0:00:05.5]} 92... Kc6 {[%clk 0:00:04.4]} 93. Qe6+
{[%clk 0:00:05.9]} 93... Kb5 {[%clk 0:00:04.8]} 94. Qe5+ {[%clk 0:00:06.4]}
94... Qc5 {[%clk 0:00:05.1]} 95. Qb8+ {[%clk 0:00:07]} 95... Kc4 {[%clk
0:00:05.2]} 96. Qg8+ {[%clk 0:00:06.7]} 96... Qd5+ {[%clk 0:00:05.6]} 97. Qxd5+
{[%clk 0:00:06.9]} 97... Kxd5 {[%clk 0:00:06.5]} 98. Kf2 {[%clk 0:00:07.3]}
98... Kc4 {[%clk 0:00:06.9]} 99. Ke2 {[%clk 0:00:08.2]} 99... Kc3 {[%clk
0:00:07.4]} 100. Kd1 {[%clk 0:00:08.5]} 100... a5 {[%clk 0:00:07.9]} 101. Kc1
{[%clk 0:00:09.4]} 101... a4 {[%clk 0:00:08.4]} 102. Kd1 {[%clk 0:00:10.3]}
102... d3 {[%clk 0:00:08.2]} 103. Kc1 {[%clk 0:00:11.2]} 103... a3 {[%clk
0:00:08.7]} 104. Kb1 {[%clk 0:00:12.1]} 104... d2 {[%clk 0:00:08.7]} 105. Ka1
{[%clk 0:00:13]} 105... d1=Q+ {[%clk 0:00:08.5]} 106. Ka2 {[%clk 0:00:13.9]}
106... Qc2+ {[%clk 0:00:07.8]} 0-1